bitfinex/quotes_SOLUSD_20250102
["timestamp","ask_amount","ask_price","bid_price","bid_amount"]
[1735808495911,14.29724096,207.02,206.95,12.63529957]
[1735808496107,12.63529957,206.99,206.92,12.63529957]
[1735808496782,12.63529957,206.98,206.91,12.63529957]
[1735808497185,12.63529957,206.99,206.93,12.63529957]
[1735808499822,12.63529957,206.99,206.92,12.63529957]
[1735808500191,12.0767,207.01,206.93,12.63529957]
[1735808500387,12.63529957,207.0,206.93,12.63529957]
[1735808500713,12.63529957,206.98,206.91,12.63529957]
[1735808502284,8.0937508,206.98,206.91,8.0937508]
[1735808503197,0.09351005,206.92,206.9,20.0]
[1735808503400,0.09351005,206.92,206.91,8.81850853]
[1735808504600,0.09351005,206.92,206.91,0.72475773]
[1735808504782,0.09351005,206.92,206.91,8.81850853]
[1735808508521,0.09351005,206.92,206.91,15.30088581]
[1735808511811,0.09351005,206.92,206.91,7.20713501]
[1735808512111,0.09351005,206.92,206.91,8.81850853]
[1735808515518,0.09351005,206.92,206.91,0.72475773]
[1735808515843,0.09351005,206.92,206.91,8.81850853]
[1735808518701,0.09351005,206.92,206.91,0.72475773]
[1735808519011,0.09351005,206.92,206.91,8.81850853]
[1735808519914,0.09351005,206.92,206.91,0.72475773]
[1735808520116,0.09351005,206.92,206.91,8.81850853]
[1735808521832,0.09351005,206.92,206.91,0.72475773]
[1735808522039,0.09351005,206.92,206.88,0.72477306]
[1735808522215,0.09351005,206.92,206.89,8.0937508]
[1735808522415,0.09351005,206.92,206.87,6.48237728]
[1735808522617,23.776884,206.94,206.88,8.0937508]
[1735808523106,0.10485166,206.89,206.87,6.48237728]
[1735808523506,0.10485166,206.89,206.85,0.72493539]
[1735808523838,0.10485166,206.89,206.88,8.0937508]
[1735808524022,0.10485166,206.89,206.87,8.0937508]
[1735808524211,0.10485166,206.89,206.85,20.72493539]
[1735808524410,0.10485166,206.89,206.87,8.0937508]
[1735808526243,0.10485166,206.89,206.86,8.0937508]
[1735808526613,0.10485166,206.89,206.85,8.0937508]
[1735808526814,0.10485166,206.89,206.86,8.0937508]
[1735808527311,0.10485166,206.89,206.88,8.0937508]
[1735808527743,0.10485166,206.89,206.87,8.0937508]
[1735808528939,0.10485166,206.89,206.86,8.0937508]
[1735808530534,0.10485166,206.89,206.87,8.0937508]
[1735808532243,0.10485166,206.89,206.88,8.0937508]
[1735808532616,0.10485166,206.89,206.88,14.93515676]
[1735808534342,0.10485166,206.89,206.88,6.84140596]
[1735808534538,0.10485166,206.89,206.88,14.93515676]
[1735808535328,0.10485166,206.89,206.88,47.31015996]
[1735808538249,0.10485166,206.89,206.88,14.93515676]
[1735808538751,0.10485166,206.89,206.88,182.91015996]
[1735808538924,5.166e-05,206.89,206.88,182.18534833]
[1735808540441,0.08965709,206.93,206.88,182.18534833]
[1735808540649,23.776884,207.0,206.96,8.0937508]
[1735808541546,23.776884,207.01,206.96,8.0937508]
[1735808542654,23.776884,207.01,206.95,8.0937508]
[1735808543361,0.09774798,206.96,206.93,20.72467543]
[1735808543539,0.09774798,206.96,206.95,8.0937508]
[1735808550356,0.09774798,206.96,206.94,8.0937508]
[1735808550557,0.09774798,206.96,206.9,135.6]
[1735808550558,0.09774798,206.96,206.92,8.0937508]
[1735808555041,0.09774798,206.96,206.91,28.0937508]
[1735808555766,0.09774798,206.96,206.92,8.0937508]
[1735808556770,0.09774798,206.96,206.91,28.0937508]
[1735808557258,0.09774798,206.96,206.92,8.0937508]
[1735808558048,0.09774798,206.96,206.91,34.21034513]
[1735808559465,0.09774798,206.96,206.91,28.0937508]
[1735808560458,0.09774798,206.96,206.93,8.0937508]
[1735808561671,0.09774798,206.96,206.92,8.0937508]
[1735808562560,8.0937508,206.99,206.92,8.0937508]
[1735808563161,0.10298896,206.93,206.92,8.0937508]
[1735808564240,0.10298896,206.93,206.9,8.0937508]
[1735808565066,0.10298896,206.93,206.89,8.81856463]
[1735808565259,8.19673976,206.93,206.86,14.93529008]
[1735808565576,9.7422508,206.91,206.86,6.11659433]
[1735808565944,9.7422508,206.91,206.87,20.0]
[1735808567557,1.6485,206.91,206.85,8.0937508]
[1735808568273,1.6485,206.91,206.86,8.0937508]
[1735808569070,1.6485,206.91,206.88,8.0937508]
[1735808569274,0.10298896,206.93,206.9,8.0937508]
[1735808570672,0.10298896,206.93,206.91,8.0937508]
[1735808571351,0.10298896,206.93,206.92,8.8185525]
[1735808572053,0.10298896,206.93,206.92,8.0937508]
[1735808572772,0.10298896,206.93,206.91,8.0937508]
[1735808573479,0.10298896,206.93,206.92,8.0937508]
[1735808573866,0.10298896,206.93,206.92,8.81851504]
[1735808574069,0.10298896,206.93,206.92,8.0937508]
[1735808579485,0.10298896,206.93,206.91,8.0937508]
[1735808580690,0.10298896,206.93,206.92,8.0937508]
[1735808580868,0.10298896,206.93,206.92,8.81853913]
[1735808581260,0.10298896,206.93,206.92,8.0937508]
[1735808581963,0.10298896,206.93,206.91,8.0937508]
[1735808582566,8.0937508,206.98,206.91,8.0937508]
[1735808583269,8.0937508,206.98,206.9,8.0937508]
[1735808583997,8.0937508,206.97,206.9,8.0937508]
[1735808585869,8.0937508,206.98,206.91,8.0937508]
[1735808586370,8.0937508,206.97,206.87,0.72483221]
[1735808586569,8.0937508,206.97,206.9,8.0937508]
[1735808586868,31.8706348,206.98,206.91,8.0937508]
[1735808587565,8.0937508,206.97,206.9,28.0937508]
[1735808588103,8.0937508,206.96,206.9,20.0]
[1735808588466,8.0937508,206.97,206.9,28.0937508]
[1735808589208,8.0937508,206.96,206.9,20.0]
[1735808590593,8.0937508,206.95,206.88,8.0937508]
[1735808590914,14.6023508,206.94,206.87,8.0937508]
[1735808591293,9.6858508,206.95,206.89,8.0937508]
[1735808591683,9.6858508,206.95,206.88,8.0937508]
[1735808591880,8.0937508,206.94,206.87,8.0937508]
[1735808592189,8.0937508,206.93,206.86,8.0937508]
[1735808592586,8.0937508,206.92,206.85,28.0937508]
[1735808592987,8.0937508,206.93,206.86,8.0937508]
[1735808593996,8.0937508,206.93,206.87,8.0937508]
[1735808594695,31.8706348,206.94,206.87,8.0937508]
[1735808595414,8.0937508,206.93,206.87,8.0937508]
[1735808595701,8.0937508,206.93,206.86,8.0937508]
[1735808599097,8.0937508,206.9,206.82,6.11659433]
[1735808599296,8.0937508,206.87,206.8,7.55506248]
[1735808599504,8.0937508,206.86,206.8,7.55506248]
[1735808599689,8.0937508,206.85,206.8,7.55506248]
[1735808600202,8.0937508,206.85,206.78,8.0937508]
[1735808600593,9.7073508,206.87,206.8,8.0937508]
[1735808600905,1.6136,206.87,206.81,28.0937508]
[1735808601077,1.6136,206.87,206.82,8.0937508]
[1735808602394,8.0937508,206.88,206.82,8.0937508]
[1735808604511,8.0937508,206.87,206.81,25.97780625]
[1735808604713,8.0937508,206.88,206.81,34.07155705]
[1735808605513,8.0937508,206.89,206.82,8.0937508]
[1735808605892,8.0937508,206.88,206.81,34.07155705]
[1735808606494,8.0937508,206.87,206.81,25.97780625]
[1735808607018,8.0937508,206.88,206.81,34.07155705]
[1735808608216,8.0937508,206.87,206.81,5.97780625]
[1735808608447,35.859384,206.91,206.81,5.97780625]
[1735808608713,8.0937508,206.91,206.85,8.0937508]
[1735808608904,9.7593508,206.92,206.85,8.0937508]
[1735808610155,1.6656,206.92,206.87,8.0937508]
[1735808610444,1.5798,206.97,206.89,8.0937508]
[1735808610622,1.5798,206.97,206.9,8.0937508]
[1735808610623,8.0937508,206.96,206.9,8.0937508]
[1735808611023,9.6735508,206.97,206.9,8.0937508]
[1735808611523,1.5798,206.97,206.91,8.0937508]
[1735808611747,1.5798,206.97,206.92,8.0937508]
[1735808612523,8.0937508,206.98,206.92,8.0937508]
[1735808612722,14.4564508,206.99,206.92,8.0937508]
[1735808612952,8.0937508,206.99,206.92,8.0937508]
[1735808614527,8.0937508,206.98,206.92,8.0937508]
[1735808614729,8.0937508,206.97,206.91,20.0]
[1735808615937,8.0937508,206.97,206.91,8.0937508]
[1735808616139,8.0937508,206.97,206.9,8.0937508]
[1735808616529,8.0937508,206.96,206.89,28.0937508]
[1735808617049,8.0937508,206.95,206.89,28.0937508]
[1735808617854,8.0937508,206.94,206.9,20.0]
[1735808618056,8.0937508,206.95,206.9,20.0]
[1735808618236,8.0937508,206.96,206.9,20.0]
[1735808618442,8.0937508,206.96,206.89,8.0937508]
[1735808619670,8.0937508,206.92,206.83,1.5102]
[1735808619857,8.0937508,206.9,206.83,9.6039508]
[1735808620267,8.0937508,206.9,206.86,20.0]
[1735808620453,8.0937508,206.91,206.87,20.0]
[1735808621348,8.0937508,206.93,206.86,8.0937508]
[1735808621566,8.0937508,206.94,206.87,8.0937508]
[1735808622672,8.0937508,206.94,206.88,8.0937508]
[1735808623346,8.0937508,206.94,206.87,8.0937508]
[1735808624857,8.0937508,206.93,206.87,8.0937508]
[1735808625675,8.0937508,206.93,206.87,8.81866672]
[1735808626369,8.0937508,206.94,206.87,8.81866672]
[1735808626680,8.0937508,206.94,206.87,8.0937508]
[1735808627980,8.0937508,206.94,206.87,8.81864742]
[1735808628154,8.0937508,206.95,206.88,8.0937508]
[1735808629483,8.0937508,206.94,206.88,8.0937508]
[1735808630150,8.0937508,206.94,206.88,20.0]
[1735808630475,8.0937508,206.94,206.9,20.0]
[1735808630656,8.0937508,206.94,206.88,28.0937508]
[1735808631257,8.0937508,206.92,206.88,20.0]
[1735808631578,8.0937508,206.93,206.88,20.0]
[1735808631780,8.0937508,206.94,206.91,20.0]
[1735808632080,8.0937508,206.96,206.9,8.0937508]
[1735808632652,8.0937508,206.97,206.91,8.0937508]
[1735808632859,8.0937508,206.98,206.91,8.0937508]
[1735808633492,6.1664,207.01,206.92,8.0937508]
[1735808633676,8.0937508,206.99,206.93,8.0937508]
[1735808634881,1.6412,207.04,206.96,8.0937508]
[1735808635056,8.0937508,207.03,206.97,8.0937508]
[1735808635257,8.0937508,207.03,206.96,8.0937508]
[1735808636778,8.0937508,207.02,206.95,8.0937508]
[1735808637782,12.0732,207.07,206.97,8.0937508]
[1735808637783,8.0937508,207.03,206.97,8.0937508]
[1735808638161,8.0937508,207.03,206.96,8.81835371]
[1735808638784,8.0937508,207.02,206.95,8.0937508]
[1735808640666,8.0937508,207.01,206.94,28.81832941]
[1735808642689,8.0937508,207.02,206.95,8.0937508]
[1735808643077,8.0937508,207.03,206.96,8.0937508]
[1735808643692,8.0937508,207.03,206.96,8.81833102]
[1735808644595,8.0937508,207.03,206.96,8.0937508]
[1735808645396,8.0937508,207.03,206.96,8.81829019]
[1735808645766,13.7208,207.09,206.97,8.0937508]
[1735808645767,8.0937508,207.04,206.97,8.0937508]
[1735808646498,8.0937508,207.04,206.98,8.0937508]
[1735808646664,8.0937508,207.04,206.98,8.81824204]
[1735808647296,8.0937508,207.05,206.98,8.0937508]
[1735808648002,8.0937508,207.05,206.99,8.0937508]
[1735808648877,8.0937508,207.05,206.98,8.0937508]
[1735808649988,8.0937508,207.04,206.97,8.0937508]
[1735808650298,13.7208,207.09,206.95,8.0937508]
[1735808650299,8.0937508,207.02,206.95,8.0937508]
[1735808651304,8.0937508,207.02,206.96,20.0]
[1735808651482,8.0937508,207.01,206.97,20.0]
[1735808652007,8.0937508,206.99,206.92,0.72464994]
[1735808652183,8.0937508,206.99,206.92,8.0937508]
[1735808652688,1.5753,207.02,206.9,0.72472794]
[1735808652689,8.0937508,206.98,206.91,8.0937508]
[1735808653786,8.0937508,206.99,206.92,8.0937508]
[1735808654085,8.0937508,207.0,206.93,8.0937508]
[1735808654508,8.0937508,206.99,206.92,8.0937508]
[1735808655480,12.0767,207.01,206.93,8.0937508]
[1735808655481,8.0937508,207.0,206.93,8.0937508]
[1735808656687,8.0937508,206.98,206.91,28.0937508]
[1735808657195,8.0937508,206.97,206.91,20.0]
[1735808657907,8.0937508,206.96,206.89,8.8186069]
[1735808660083,8.0937508,206.94,206.88,20.0]
[1735808660319,8.0937508,206.93,206.86,8.0937508]
[1735808660614,8.0937508,206.93,206.86,20.0]
[1735808660915,8.0937508,206.9,206.84,8.0937508]
[1735808661782,8.0937508,206.88,206.85,20.0]
[1735808661987,8.0937508,206.89,206.85,20.0]
[1735808662606,8.0937508,206.89,206.83,28.0937508]
[1735808662918,8.0937508,206.9,206.83,28.0937508]
[1735808664019,8.0937508,206.88,206.83,20.0]
[1735808664382,8.0937508,206.88,206.81,8.0937508]
[1735808665612,8.0937508,206.88,206.79,0.72515467]
[1735808665613,8.0937508,206.89,206.82,8.0937508]
[1735808666417,8.0937508,206.9,206.83,8.0937508]
[1735808666617,8.0937508,206.9,206.84,8.0937508]
[1735808667305,8.0937508,206.9,206.83,8.0937508]
[1735808671415,23.776884,206.93,206.85,8.0937508]
[1735808671627,8.0937508,206.92,206.85,8.0937508]
[1735808672620,23.776884,206.93,206.85,8.0937508]
[1735808672918,8.0937508,206.92,206.85,8.0937508]
[1735808673539,8.0937508,206.91,206.84,8.0937508]
[1735808674228,8.0937508,206.91,206.85,8.0937508]
[1735808674717,23.776884,206.93,206.85,8.0937508]
[1735808674924,8.0937508,206.91,206.85,8.0937508]
[1735808676123,8.0937508,206.92,206.85,8.0937508]
[1735808677321,8.0937508,206.9,206.84,8.0937508]
[1735808678830,8.0937508,206.91,206.84,8.0937508]
[1735808682523,1.6588,206.94,206.85,8.0937508]
[1735808682727,6.2519,206.96,206.9,8.0937508]
[1735808683201,14.3456508,206.96,206.89,8.0937508]
[1735808683698,8.0937508,206.95,206.89,8.0937508]
[1735808683904,8.0937508,206.95,206.88,8.0937508]
[1735808684130,8.0937508,206.94,206.87,8.0937508]
[1735808684422,8.0937508,206.93,206.84,20.0]
[1735808684603,8.0937508,206.93,206.86,8.0937508]
[1735808685200,8.0937508,206.92,206.86,8.0937508]
[1735808685419,8.0937508,206.92,206.85,8.0937508]
[1735808685814,8.0937508,206.93,206.86,8.0937508]
[1735808686330,8.0937508,206.92,206.85,8.0937508]
[1735808686727,8.0937508,206.93,206.86,8.0937508]
[1735808688828,23.776884,206.95,206.86,8.0937508]
[1735808689229,8.0937508,206.93,206.86,8.0937508]
[1735808689532,23.776884,206.95,206.86,8.0937508]
[1735808689717,8.0937508,206.93,206.86,8.0937508]
[1735808692535,6.2519,206.96,206.87,8.0937508]
[1735808692833,6.2519,206.96,206.84,0.72497808]
[1735808692834,8.0937508,206.93,206.86,8.0937508]
[1735808694437,6.2519,206.96,206.89,20.0]
[1735808694605,8.0937508,206.94,206.9,20.0]
[1735808694811,8.0937508,206.95,206.9,20.0]
[1735808695340,8.0937508,206.94,206.9,20.0]
[1735808695837,14.09521672,207.08,206.92,8.0937508]
[1735808696142,8.0937508,207.02,206.96,8.0937508]
[1735808696328,1.5237,207.07,206.96,8.0937508]
[1735808696514,8.0937508,207.02,206.96,8.0937508]
[1735808696836,8.0937508,207.02,206.95,8.0937508]
[1735808697842,8.0937508,207.01,206.94,8.0937508]
[1735808698340,8.0937508,206.99,206.96,20.0]
[1735808699222,8.0937508,207.0,206.93,28.0937508]
[1735808699541,8.0937508,207.0,206.94,8.0937508]
[1735808700137,8.0937508,207.01,206.94,8.0937508]
[1735808700846,8.0937508,207.0,206.94,8.0937508]
[1735808704351,8.0937508,206.99,206.95,20.0]
[1735808704549,8.0937508,206.96,206.89,8.0937508]
[1735808704730,8.0937508,206.95,206.89,8.0937508]
[1735808704935,8.0937508,206.94,206.88,8.0937508]
[1735808705125,8.0937508,206.93,206.87,8.0937508]
[1735808705525,8.0937508,206.93,206.9,20.0]
[1735808705828,1.5485,206.99,206.86,8.0937508]
[1735808706037,1.5485,206.99,206.85,8.0937508]
[1735808706038,8.0937508,206.91,206.85,8.0937508]
[1735808706436,8.0937508,206.91,206.88,20.0]
[1735808707841,8.0937508,206.9,206.81,0.72502765]
[1735808708023,8.0937508,206.87,206.8,8.0937508]
[1735808708218,23.776884,206.9,206.81,28.0937508]
[1735808708424,9.6398508,206.91,206.85,8.0937508]
[1735808709317,8.0937508,206.93,206.87,8.0937508]
[1735808710046,8.0937508,206.94,206.88,8.0937508]
[1735808711752,8.0937508,206.95,206.88,8.0937508]
[1735808711932,1.5027,206.96,206.9,8.0937508]
[1735808712337,8.0937508,206.97,206.91,8.0937508]
[1735808712544,8.0937508,206.98,206.91,8.0937508]
[1735808712859,8.0937508,206.99,206.92,8.0937508]
[1735808713152,1.6244,207.01,206.94,8.0937508]
[1735808713452,1.6244,207.01,206.95,8.0937508]
[1735808713623,9.7181508,207.01,206.94,8.0937508]
[1735808713824,8.0937508,207.0,206.94,8.0937508]
[1735808714130,9.7181508,207.01,206.94,8.0937508]
[1735808714332,9.7181508,207.01,206.95,8.0937508]
[1735808715151,1.6244,207.01,206.95,8.0937508]
[1735808715445,1.6481,207.06,207.0,8.0937508]
[1735808715651,14.5031508,207.09,207.02,8.0937508]
[1735808716568,14.5031508,207.09,207.03,8.0937508]
[1735808716730,8.0937508,207.1,207.03,8.0937508]
[1735808719157,9.7319508,207.11,207.04,8.0937508]
[1735808720248,9.7319508,207.11,207.05,8.0937508]
[1735808720554,8.0937508,207.09,207.01,20.0]
[1735808720860,8.0937508,207.09,207.05,20.0]
[1735808722443,8.0937508,207.09,207.02,8.0937508]
[1735808723361,8.0937508,207.08,207.04,20.0]
[1735808723546,8.0937508,207.09,207.04,20.0]
[1735808723858,8.0937508,207.09,206.95,0.7244585]
[1735808723859,8.0937508,207.07,206.95,136.3244585]
[1735808724046,8.0937508,207.03,206.97,8.0937508]
[1735808724354,8.0937508,207.02,206.96,8.0937508]
[1735808724744,8.0937508,207.03,206.97,28.0937508]
[1735808725663,8.0937508,207.04,206.97,28.0937508]
[1735808726264,23.776884,207.08,206.97,28.0937508]
[1735808726562,8.0937508,207.04,206.97,28.0937508]
[1735808726743,8.0937508,207.04,206.98,8.0937508]
[1735808727849,8.0937508,207.04,206.97,28.0937508]
[1735808728363,8.0937508,207.05,206.98,8.0937508]
[1735808728567,8.0937508,207.05,206.99,8.0937508]
[1735808728955,8.0937508,207.05,206.98,8.0937508]
[1735808729566,8.0937508,207.06,207.02,20.0]
[1735808729945,8.0937508,207.07,207.02,20.0]
[1735808730147,8.0937508,207.09,207.02,8.0937508]
[1735808730962,8.0937508,207.1,207.05,20.0]
[1735808731565,8.0937508,207.09,207.05,20.0]
[1735808733270,8.0937508,207.1,207.03,8.0937508]
[1735808733627,9.7319508,207.11,207.06,20.0]
[1735808733779,1.6382,207.11,207.05,8.0937508]
[1735808734443,8.0937508,207.12,207.05,8.0937508]
[1735808735283,8.0937508,207.13,207.05,8.0937508]
[1735808736375,14.5515508,207.14,207.06,8.0937508]
[1735808736870,1.6637,207.16,207.02,35.852984]
[1735808737081,6.4063,207.18,207.02,35.852984]
[1735808737082,6.4063,207.18,207.12,8.0937508]
[1735808737253,6.4063,207.18,207.11,8.0937508]
[1735808737462,14.5000508,207.18,207.11,8.0937508]
[1735808737656,8.0937508,207.18,207.14,20.0]
[1735808737857,8.0937508,207.19,207.14,20.0]
[1735808738281,23.776884,207.14,206.98,154.0372]
[1735808738578,8.0937508,207.1,207.03,8.0937508]
[1735808738883,8.0937508,207.09,207.02,8.0937508]
[1735808739190,8.0937508,207.09,207.05,20.0]
[1735808739477,8.0937508,207.1,207.03,8.0937508]
[1735808739676,8.0937508,207.11,207.06,20.0]
[1735808740075,8.0937508,207.1,207.06,20.0]
[1735808740391,12.63186585,207.1,207.06,20.0]
[1735808741102,12.63186585,207.09,207.05,20.0]
[1735808741289,12.63186585,207.07,207.0,12.63186585]
[1735808741465,12.63186585,207.07,206.99,12.63186585]
[1735808742180,12.63186585,207.07,207.03,20.0]
[1735808742767,12.63186585,207.08,207.01,12.63186585]
[1735808744072,12.63186585,207.07,207.03,20.0]
[1735808744275,12.63186585,207.05,206.98,12.63186585]
[1735808744595,12.63186585,207.04,206.97,12.63186585]
[1735808745400,12.63186585,207.04,207.0,20.0]
[1735808746286,12.63186585,207.03,206.95,20.0]
[1735808746488,12.63186585,207.03,206.96,12.63186585]
[1735808746690,12.63186585,207.02,206.95,12.63186585]
[1735808747067,12.63186585,207.02,206.96,12.63186585]
[1735808748790,12.63186585,207.03,206.96,12.63186585]
[1735808749269,14.19586585,207.04,206.97,12.63186585]
[1735808750791,12.63186585,207.03,206.96,12.63186585]
[1735808752193,12.63186585,207.02,206.98,20.0]
[1735808753681,36.40874985,207.03,206.98,20.0]
[1735808754706,12.63186585,206.99,206.91,12.63186585]
[1735808754909,12.63186585,206.98,206.91,12.63186585]
[1735808755386,23.776884,207.03,206.92,12.63186585]
[1735808755387,12.63186585,206.99,206.92,12.63186585]
[1735808756134,12.63186585,206.97,206.91,12.63186585]
[1735808756415,12.63186585,206.95,206.88,12.63186585]
[1735808756588,12.63186585,206.95,206.91,20.0]
[1735808759598,1.6653,206.96,206.88,20.0]
[1735808759599,12.63186585,206.94,206.88,20.0]
[1735808759803,12.63186585,206.93,206.9,20.0]
[1735808760518,12.63186585,206.94,206.9,20.0]
[1735808761314,12.63186585,206.94,206.88,12.63186585]
[1735808762528,12.63186585,206.95,206.89,12.63186585]
[1735808762699,14.29716585,206.96,206.89,12.63186585]
[1735808762901,14.29716585,206.96,206.9,12.63186585]
[1735808763121,12.63186585,206.94,206.88,12.63186585]
[1735808763652,12.63186585,206.95,206.88,12.63186585]
[1735808764117,12.63186585,206.92,206.86,12.63186585]
[1735808764313,12.63186585,206.91,206.85,12.63186585]
[1735808764818,12.63186585,206.91,206.88,20.0]
[1735808765508,12.63186585,206.9,206.84,12.63186585]
[1735808765703,12.63186585,206.88,206.82,12.63186585]
[1735808766110,12.63186585,206.88,206.81,12.63186585]
[1735808766425,12.63186585,206.87,206.81,12.63186585]
[1735808767521,14.15196585,206.88,206.81,12.63186585]
[1735808769718,12.63186585,206.87,206.8,12.63186585]
[1735808769920,12.63186585,206.86,206.8,12.63186585]
[1735808771323,12.63186585,206.85,206.78,32.63186585]
[1735808772335,12.63186585,206.84,206.78,32.63186585]
[1735808773930,12.63186585,206.85,206.79,12.63186585]
[1735808774303,8.10347025,206.85,206.79,8.10347025]
[1735808774620,8.10347025,206.84,206.78,8.10347025]
[1735808774822,8.10347025,206.85,206.79,8.10347025]
[1735808775005,8.10347025,206.86,206.8,8.10347025]
[1735808780416,8.10347025,206.85,206.79,8.10347025]
[1735808781330,31.88035425,206.84,206.78,8.10347025]
[1735808781532,8.10347025,206.81,206.7,12.81799514]
[1735808781707,8.10347025,206.79,206.7,12.81799514]
[1735808781920,8.10347025,206.79,206.72,8.10347025]
[1735808782240,23.776884,206.8,206.69,1.5276]
[1735808782411,8.10347025,206.76,206.7,8.10347025]
[1735808782613,8.10347025,206.77,206.7,8.10347025]
[1735808783625,8.10347025,206.79,206.73,8.10347025]
[1735808783927,9.66677025,206.89,206.78,28.10347025]
[1735808784128,1.5633,206.89,206.83,8.10347025]
[1735808784331,23.776884,206.88,206.83,8.10347025]
[1735808785034,23.776884,206.88,206.82,8.10347025]
[1735808785612,8.10347025,206.91,206.85,8.10347025]
[1735808786220,12.65515917,206.91,206.85,12.65515917]
[1735808786529,12.65515917,206.9,206.84,12.65515917]
[1735808787227,12.65515917,206.89,206.83,12.65515917]
[1735808788647,12.65515917,206.88,206.82,12.65515917]
[1735808790645,12.65515917,206.86,206.8,12.65515917]
[1735808790823,12.65515917,206.81,206.69,12.0951]
[1735808791033,12.65515917,206.8,206.74,12.65515917]
[1735808791349,1.6219,206.85,206.79,32.65515917]
[1735808791550,6.5163,206.88,206.79,20.0]
[1735808791741,12.65515917,206.85,206.79,32.65515917]
[1735808792126,12.65515917,206.86,206.8,12.65515917]
[1735808792321,12.65515917,206.87,206.81,12.65515917]
[1735808793224,12.65515917,206.86,206.8,12.65515917]
[1735808793848,12.65515917,206.86,206.75,2.23249137]
[1735808794031,12.65515917,206.83,206.75,2.23249137]
[1735808794232,12.65515917,206.83,206.8,20.0]
[1735808794825,12.65515917,206.82,206.76,12.65515917]
[1735808795147,12.65515917,206.82,206.78,20.0]
[1735808797459,12.65515917,206.81,206.75,12.65515917]
[1735808798152,12.65515917,206.78,206.72,12.65515917]
[1735808798530,12.65515917,206.77,206.7,12.65515917]
[1735808798750,12.65515917,206.77,206.7,32.65515917]
[1735808799448,12.65515917,206.76,206.7,32.65515917]
[1735808799645,23.776884,206.81,206.7,32.65515917]
[1735808799844,12.65515917,206.76,206.7,20.0]
[1735808800047,12.65515917,206.72,206.67,1.5781]
[1735808800251,19.07795917,206.8,206.69,12.65515917]
[1735808800252,12.65515917,206.75,206.69,12.65515917]
[1735808800646,12.65515917,206.76,206.69,12.65515917]
[1735808800963,6.4228,206.8,206.71,12.65515917]
[1735808801156,12.65515917,206.78,206.71,12.65515917]
[1735808801465,12.65515917,206.74,206.68,12.65515917]
[1735808801767,12.65515917,206.71,206.63,20.72565555]
[1735808802065,12.65515917,206.71,206.62,1.6054]
[1735808802066,12.65515917,206.71,206.68,20.0]
[1735808802636,12.65515917,206.72,206.68,20.0]
[1735808803864,24.07795917,206.8,206.66,12.65515917]
[1735808803865,12.65515917,206.73,206.66,12.65515917]
[1735808804667,12.0895,206.79,206.68,12.65515917]
[1735808804668,12.65515917,206.74,206.68,12.65515917]
[1735808805469,12.65515917,206.74,206.67,12.65515917]
[1735808805966,12.65515917,206.73,206.66,12.65515917]
[1735808807371,12.65515917,206.72,206.66,12.65515917]
[1735808808567,12.65515917,206.73,206.66,12.65515917]
[1735808809965,12.65515917,206.73,206.67,12.65515917]
[1735808811275,12.65515917,206.73,206.66,12.65515917]
[1735808811677,12.65515917,206.72,206.66,12.65515917]
[1735808811854,12.65515917,206.73,206.66,12.65515917]
[1735808812243,82.2,206.78,206.56,12.1026]
[1735808812244,12.65515917,206.68,206.56,12.1026]
[1735808812438,6.5508,206.72,206.56,12.1026]
[1735808812439,12.65515917,206.72,206.66,12.65515917]
[1735808814268,12.65515917,206.71,206.65,12.65515917]
[1735808814961,12.65515917,206.72,206.66,12.65515917]
[1735808815866,23.776884,206.74,206.66,12.65515917]
[1735808815867,12.65515917,206.73,206.66,12.65515917]
[1735808816774,14.30515917,206.75,206.69,12.65515917]
[1735808816944,12.65515917,206.77,206.71,12.65515917]
[1735808817146,12.65515917,206.78,206.72,12.65515917]
[1735808817672,12.65515917,206.79,206.72,12.65515917]
[1735808817977,1.5948,206.8,206.72,12.65515917]
[1735808817978,12.65515917,206.78,206.72,12.65515917]
[1735808818375,12.65515917,206.79,206.72,12.65515917]
[1735808818700,1.5948,206.8,206.74,12.65515917]
[1735808818701,14.24995917,206.8,206.74,12.65515917]
[1735808819573,12.65515917,206.81,206.75,12.65515917]
[1735808819772,12.65515917,206.82,206.76,12.65515917]
[1735808820382,12.65515917,206.81,206.75,12.65515917]
[1735808820674,12.65515917,206.83,206.76,12.65515917]
[1735808821557,12.65515917,206.83,206.77,12.65515917]
[1735808822087,12.65515917,206.84,206.77,12.65515917]
[1735808823360,12.65515917,206.82,206.78,20.0]
[1735808823561,12.65515917,206.83,206.78,20.0]
[1735808824086,12.65515917,206.83,206.77,12.65515917]
[1735808824391,12.65515917,206.84,206.77,12.65515917]
[1735808824782,12.65515917,206.83,206.77,12.65515917]
[1735808824952,1.5573,206.85,206.78,12.65515917]
[1735808825164,12.65515917,206.86,206.79,12.65515917]
[1735808825359,12.65515917,206.87,206.81,12.65515917]
[1735808825558,12.65515917,206.89,206.82,12.65515917]
[1735808825784,14.22605917,206.9,206.83,12.65515917]